bitfinex-derivatives/quotes_SOLF0:USTF0_20250516
["timestamp","ask_amount","ask_price","bid_price","bid_amount"]
[1747407608671,10.66451185,171.65,171.52,10.66451185]
[1747407608881,61.98,171.62,171.52,10.66451185]
[1747407609287,61.98,171.62,171.52,22.32101185]
[1747407609681,61.98,171.62,171.52,84.24101185]
[1747407609878,67.8049,171.62,171.59,5.8256]
[1747407610489,61.98,171.62,171.52,72.58451185]
[1747407610674,61.92,171.61,171.52,72.58451185]
[1747407611288,67.7455,171.61,171.58,5.826]
[1747407612188,61.92,171.61,171.52,72.58451185]
[1747407612792,61.92,171.61,171.6,5.8255]
[1747407613187,61.9,171.63,171.55,61.98]
[1747407613387,5.8244,171.64,171.61,5.825]
[1747407613582,61.9,171.63,171.61,5.825]
[1747407613893,67.7247,171.63,171.6,5.8254]
[1747407614190,61.9,171.63,171.6,5.8254]
[1747407614895,5.8249,171.62,171.59,5.8258]
[1747407615988,5.8249,171.62,171.6,5.8255]
[1747407616187,5.8249,171.62,171.56,1.9785]
[1747407616394,61.9,171.63,171.51,3.8526]
[1747407616695,61.9,171.63,171.52,61.96]
[1747407616894,5.8263,171.58,171.52,61.96]
[1747407617095,61.88,171.58,171.52,61.96]
[1747407617293,61.88,171.58,171.52,63.794]
[1747407617494,123.84,171.61,171.52,74.45851185]
[1747407617684,61.88,171.61,171.52,74.45851185]
[1747407618695,67.7053,171.61,171.59,5.8257]
[1747407618895,61.88,171.61,171.52,74.45851185]
[1747407619198,61.88,171.61,171.6,5.8255]
[1747407619497,61.88,171.61,171.52,74.45851185]
[1747407620398,61.88,171.61,171.6,5.8255]
[1747407622797,67.7842,171.64,171.61,5.8251]
[1747407622991,129.6242,171.64,171.61,5.8251]
[1747407623389,129.6242,171.64,171.62,5.8248]
[1747407623593,123.8,171.64,171.62,5.8248]
[1747407623789,61.96,171.67,171.56,61.96]
[1747407624201,61.84,171.66,171.56,61.96]
[1747407624405,61.84,171.66,171.64,5.824]
[1747407624789,61.84,171.66,171.57,61.84]
[1747407625000,61.84,171.66,171.58,5.6714]
[1747407625203,123.8,171.67,171.66,5.8235]
[1747407625402,72.62451185,171.7,171.66,5.8235]
[1747407625594,72.62451185,171.7,171.6,61.96]
[1747407625795,67.6626,171.69,171.6,61.96]
[1747407626100,61.82,171.68,171.6,61.96]
[1747407626301,61.82,171.68,171.65,5.8237]
[1747407626601,67.643,171.68,171.65,5.8237]
[1747407627099,67.643,171.68,171.66,5.8234]
[1747407627299,61.82,171.68,171.66,5.8234]
[1747407627996,67.6426,171.69,171.66,5.8234]
[1747407628405,67.6426,171.69,171.67,5.8231]
[1747407628604,67.6426,171.69,171.6,61.96]
[1747407629005,67.6426,171.69,171.66,5.8233]
[1747407629400,5.8228,171.68,171.66,5.8233]
[1747407629703,5.8228,171.68,171.65,5.8237]
[1747407630000,67.6426,171.69,171.66,5.8235]
[1747407630299,67.6426,171.69,171.6,61.96]
[1747407630504,72.46451185,171.73,171.61,61.8]
[1747407630803,61.8,171.71,171.69,5.8222]
[1747407631397,67.6218,171.71,171.68,5.8228]
[1747407631804,5.823,171.68,171.61,123.6]
[1747407632003,5.823,171.68,171.65,5.8236]
[1747407632303,61.78,171.69,171.61,123.6]
[1747407632601,5.823,171.68,171.64,5.824]
[1747407632904,5.823,171.68,171.61,123.6]
[1747407633107,61.78,171.69,171.61,123.6]
[1747407634204,61.78,171.69,171.68,5.8228]
[1747407634596,61.78,171.72,171.7,5.8219]
[1747407634797,129.4013,171.73,171.7,5.8219]
[1747407634996,123.58,171.73,171.66,1.8311]
[1747407635192,123.56,171.73,171.66,1.8311]
[1747407635407,129.3813,171.73,171.7,5.8221]
[1747407636708,5.8215,171.72,171.7,5.8221]
[1747407636903,123.56,171.73,171.7,5.8221]
[1747407637211,123.56,171.73,171.71,5.8218]
[1747407637508,62.77457726,171.74,171.66,5.7909]
[1747407637705,62.77457726,171.74,171.72,5.8214]
[1747407638110,68.59547726,171.74,171.66,5.7909]
[1747407638312,62.77457726,171.74,171.66,5.7909]
[1747407638803,5.8217,171.72,171.69,5.8222]
[1747407639903,5.8217,171.72,171.7,5.8221]
[1747407640907,62.77457726,171.74,171.66,5.7909]
[1747407641609,5.8216,171.72,171.69,5.8222]
[1747407642008,5.8216,171.72,171.66,5.7909]
[1747407642208,5.8213,171.73,171.7,5.8219]
[1747407642408,62.77457726,171.74,171.7,5.8219]
[1747407642908,5.8217,171.72,171.69,5.8223]
[1747407643112,5.8217,171.72,171.66,5.7909]
[1747407643911,5.8217,171.72,171.69,5.8223]
[1747407644313,5.8217,171.72,171.66,5.7909]
[1747407644612,5.8213,171.73,171.66,5.7909]
[1747407645114,5.8213,171.73,171.7,5.8219]
[1747407645606,1.01457726,171.74,171.66,5.7909]
[1747407645814,62.71457726,171.74,171.66,5.7909]
[1747407646602,1.01457726,171.74,171.66,5.7909]
[1747407646806,1.01457726,171.74,171.66,67.4909]
[1747407647207,1.01457726,171.74,171.67,10.66451185]
[1747407647510,1.01457726,171.74,171.73,5.8211]
[1747407647711,61.68,171.81,171.73,61.78]
[1747407648215,123.46,171.82,171.74,1.8458]
[1747407648417,61.68,171.83,171.74,3.6821]
[1747407648614,61.68,171.83,171.81,5.8184]
[1747407648812,61.78,171.85,171.74,67.352]
[1747407649121,61.68,171.86,171.76,10.66451185]
[1747407649319,61.68,171.86,171.77,61.76]
[1747407649614,61.76,171.91,171.78,61.68]
[1747407649812,5.8159,171.89,171.84,5.8171]
[1747407650012,61.68,171.9,171.84,5.8171]
[1747407650320,61.68,171.9,171.81,61.76]
[1747407650815,10.66451185,171.89,171.78,61.76]
[1747407651219,1.8751,171.88,171.78,61.76]
[1747407651511,5.8165,171.87,171.83,5.8175]
[1747407651716,61.66,171.87,171.83,5.8175]
[1747407652017,61.66,171.87,171.78,61.76]
[1747407652516,61.66,171.87,171.83,5.8176]
[1747407652917,61.66,171.87,171.78,61.76]
[1747407653409,123.4,171.87,171.78,61.76]
[1747407653615,5.8171,171.85,171.78,61.76]
[1747407653818,134.06451185,171.87,171.74,5.672]
[1747407654013,134.06451185,171.87,171.76,61.74]
[1747407654213,5.8175,171.84,171.81,5.8184]
[1747407654413,67.4575,171.84,171.81,5.8184]
[1747407654815,67.4575,171.84,171.8,5.8186]
[1747407655013,5.8178,171.83,171.8,5.8186]
[1747407655210,61.64,171.84,171.76,61.74]
[1747407655713,61.64,171.84,171.82,5.818]
[1747407656718,72.40451185,171.87,171.83,5.8177]
[1747407657013,61.62,171.86,171.76,72.40451185]
[1747407657209,61.62,171.86,171.83,5.8176]
[1747407657610,61.62,171.86,171.76,72.40451185]
[1747407658011,67.4368,171.86,171.76,72.40451185]
[1747407658408,67.4368,171.86,171.83,5.8177]
[1747407659223,61.62,171.86,171.83,5.8177]
[1747407659615,61.62,171.86,171.79,61.74]
[1747407659816,67.4367,171.86,171.79,61.74]
[1747407660023,61.62,171.86,171.79,61.74]
[1747407660317,5.8176,171.84,171.77,61.6]
[1747407660824,5.8176,171.84,171.81,5.8182]
[1747407661019,5.8179,171.83,171.77,61.6]
[1747407661218,61.62,171.86,171.77,61.6]
[1747407661526,10.66451185,171.84,171.74,67.272]
[1747407661716,5.8181,171.82,171.74,67.272]
[1747407662023,61.6,171.81,171.74,67.272]
[1747407663222,61.6,171.81,171.8,5.8187]
[1747407667229,61.58,171.84,171.83,5.8177]
[1747407667432,12.51721185,171.91,171.78,61.6]
[1747407667619,123.18,171.9,171.79,61.6]
[1747407667825,5.816,171.89,171.86,5.8167]
[1747407668131,123.18,171.9,171.79,61.6]
[1747407668532,5.8163,171.88,171.84,5.8171]
[1747407668722,123.18,171.9,171.79,61.6]
[1747407669128,123.18,171.9,171.82,5.818]
[1747407669535,10.66451185,171.88,171.79,61.6]
[1747407669830,10.66451185,171.85,171.8,5.8185]
[1747407670026,123.16,171.84,171.8,5.8185]
[1747407670223,5.8181,171.82,171.76,61.6]
[1747407670423,123.16,171.84,171.74,5.672]
[1747407670623,123.16,171.84,171.79,5.819]
[1747407671230,5.8183,171.82,171.79,5.819]
[1747407671430,123.16,171.84,171.8,5.8187]
[1747407671631,123.16,171.84,171.74,67.272]
[1747407672328,5.8183,171.82,171.74,67.272]
[1747407672629,5.8183,171.82,171.79,5.8188]
[1747407672842,123.16,171.84,171.79,5.8188]
[1747407673130,5.8184,171.82,171.79,5.8188]
[1747407673532,5.8179,171.83,171.8,5.8186]
[1747407673931,123.16,171.84,171.8,5.8186]
[1747407674234,5.8183,171.82,171.79,5.819]
[1747407674435,123.16,171.84,171.74,67.272]
[1747407674932,10.66451185,171.83,171.74,65.2821]
[1747407675238,10.66451185,171.83,171.74,1.8458]
[1747407675440,5.8194,171.79,171.76,5.8199]
[1747407675736,61.56,171.78,171.76,5.8199]
[1747407675932,5.8198,171.77,171.71,61.6]
[1747407676432,5.8198,171.77,171.74,5.8206]
[1747407676627,61.56,171.78,171.67,61.6]
[1747407676828,61.6,171.76,171.66,63.5126]
[1747407677027,61.6,171.76,171.7,5.8218]
[1747407677233,61.6,171.76,171.66,63.5126]
[1747407677534,61.6,171.76,171.66,74.17711185]
[1747407678230,61.56,171.78,171.67,61.54]
[1747407678431,61.56,171.78,171.69,10.66451185]
[1747407678634,61.56,171.78,171.7,61.6]
[1747407679540,61.56,171.78,171.77,5.8198]
[1747407681131,10.66451185,171.86,171.73,1.8781]
[1747407681337,61.6,171.85,171.75,10.66451185]
[1747407681530,123.14,171.85,171.75,10.66451185]
[1747407681841,123.14,171.85,171.75,72.20451185]
[1747407682538,61.6,171.85,171.75,72.20451185]
[1747407682727,123.14,171.85,171.75,72.20451185]
[1747407683037,61.54,171.85,171.75,72.20451185]
[1747407683638,5.8178,171.83,171.75,10.66451185]
[1747407683933,67.3578,171.83,171.75,61.6]
[1747407684133,61.54,171.83,171.8,5.8185]
[1747407684326,61.54,171.83,171.75,61.6]
[1747407684531,61.54,171.83,171.75,72.26451185]
[1747407684733,61.54,171.83,171.82,5.8181]
[1747407685144,5.8169,171.86,171.82,5.8181]
[1747407685337,61.54,171.85,171.83,5.8177]
[1747407686041,61.6,171.87,171.83,5.8177]
[1747407686244,61.6,171.87,171.78,10.66451185]
[1747407686439,61.54,171.86,171.79,63.6042]
[1747407686940,61.54,171.86,171.8,1.9256]
[1747407687741,61.54,171.86,171.84,5.8172]
[1747407688131,61.54,171.86,171.8,1.9256]
[1747407689546,67.3569,171.86,171.82,5.8178]
[1747407690147,5.8171,171.85,171.82,5.8178]
[1747407690840,61.54,171.86,171.8,1.9256]
[1747407690841,61.6,171.87,171.8,1.9256]
[1747407691051,61.52,171.88,171.8,63.4256]
[1747407691244,65.2052,171.93,171.8,63.4256]
[1747407691553,61.52,171.92,171.81,10.66451185]
[1747407691746,61.5,171.93,171.82,61.52]
[1747407691948,61.52,171.94,171.93,5.8143]
[1747407692248,61.5,171.96,171.87,72.16451185]
[1747407692249,123.02,171.96,171.87,72.16451185]
[1747407692442,123.02,171.96,171.88,65.3717]
[1747407692642,61.52,171.96,171.88,65.3717]
[1747407693849,61.5,172.01,171.92,10.66451185]
[1747407694050,61.5,172.01,171.93,63.4482]
[1747407695747,61.5,172.02,171.93,63.4482]
[1747407696747,61.5,172.02,171.99,5.8121]
[1747407697050,61.5,172.02,171.93,63.4482]
[1747407698555,5.8117,172.01,171.93,63.4482]
[1747407698853,61.5,172.02,171.93,1.9482]
[1747407699052,61.5,172.02,171.92,61.48]
[1747407699359,5.8123,171.99,171.95,5.8136]
[1747407699652,61.46,171.98,171.95,5.8136]
[1747407699946,61.46,171.98,171.92,61.48]
[1747407700352,61.46,171.99,171.92,61.48]
[1747407701852,61.46,171.99,171.98,5.8127]
[1747407702255,61.46,171.99,171.92,61.48]
[1747407702854,67.2725,171.99,171.95,5.8135]
[1747407703054,67.2725,171.99,171.92,61.48]
[1747407703954,5.8127,171.98,171.92,61.48]
[1747407704156,61.46,171.99,171.92,61.48]
[1747407704356,61.46,171.99,171.95,5.8135]
[1747407704550,67.2725,171.99,171.95,5.8135]
[1747407705255,61.46,171.99,171.92,61.48]
[1747407705643,67.2724,171.99,171.92,61.48]
[1747407706058,61.46,171.99,171.97,5.8128]
[1747407706357,61.46,171.99,171.92,61.48]
[1747407706656,61.46,171.99,171.97,5.8127]
[1747407707655,61.46,171.99,171.98,5.8127]
[1747407707851,61.46,171.99,171.92,61.48]
[1747407708060,67.252,172.0,171.92,61.48]
[1747407708356,67.252,172.0,171.97,5.8129]
[1747407709464,61.44,172.0,171.98,5.8126]
[1747407710366,61.5,172.03,171.92,61.48]
[1747407710560,61.42,172.01,171.92,61.48]
[1747407710861,61.42,172.02,171.92,61.48]
[1747407711165,67.2316,172.02,172.0,5.812]
[1747407711358,61.5,172.03,172.0,5.812]
[1747407711557,61.42,172.02,172.0,5.812]
[1747407711864,61.42,172.02,172.01,5.8116]
[1747407712057,564.24,172.06,171.93,61.42]
[1747407712262,61.42,172.05,171.96,61.46]
[1747407712665,5.8112,172.03,172.0,5.8119]
[1747407712961,564.24,172.06,171.96,61.46]
[1747407713162,61.42,172.05,171.96,61.46]
[1747407713362,5.8115,172.02,171.99,5.8121]
[1747407713966,16.97226247,172.13,171.96,61.46]
[1747407714265,122.88,172.08,171.97,5.5448]
[1747407714565,61.46,172.08,171.97,5.5448]
[1747407714760,61.4,172.07,171.97,5.5448]
[1747407715463,61.4,172.07,171.97,65.1326]
[1747407715864,5.8112,172.03,172.0,5.8117]
[1747407716068,61.4,172.02,172.0,5.8117]
[1747407716360,61.4,172.02,171.93,1.8522]
[1747407716663,61.4,172.02,171.91,63.3093]
[1747407717066,5.8127,171.98,171.95,5.8134]
[1747407717266,61.4,171.98,171.91,63.3093]
[1747407718170,61.4,171.98,171.91,73.92432152]
[1747407718970,5.8116,172.02,171.91,73.92432152]
[1747407719269,61.4,172.01,171.91,73.92432152]
[1747407719473,61.4,172.01,171.92,61.4]
[1747407719768,61.4,172.02,171.92,61.4]
[1747407720071,1.8225,172.08,171.92,61.4]
[1747407720279,122.78,172.07,171.92,61.4]
[1747407720473,1.8225,172.08,171.93,11.6286]
[1747407720766,61.38,172.08,172.01,5.8113]
[1747407720971,61.4,172.07,171.98,61.38]
[1747407721167,5.8118,172.01,171.97,5.8127]
[1747407721371,61.4,172.01,171.94,61.38]
[1747407722274,61.4,172.01,171.99,5.8122]
[1747407722572,61.4,172.01,171.94,61.38]
[1747407723674,5.8124,171.99,171.96,5.8131]
[1747407723876,61.4,172.01,171.94,61.38]
[1747407724271,61.4,172.01,171.96,5.8133]
[1747407724670,61.4,172.01,171.91,1.8693]
[1747407724878,61.4,172.01,171.95,5.8134]
[1747407725273,5.8128,171.98,171.95,5.8134]
[1747407725474,61.38,171.97,171.96,5.8133]
[1747407726271,61.38,171.97,171.95,5.8135]
[1747407726676,61.38,171.97,171.91,61.38]
[1747407726875,61.38,171.97,171.96,5.8133]
[1747407727675,61.38,172.03,172.0,5.812]
[1747407727973,61.38,172.02,172.01,5.8116]
[1747407728273,61.38,172.02,171.95,61.38]
[1747407729078,67.1915,172.02,171.99,5.812]
[1747407729273,61.38,172.02,171.95,61.38]
[1747407729773,61.38,172.02,171.96,1.966]
[1747407730373,61.38,172.04,171.96,1.966]
[1747407730579,61.38,172.04,171.97,3.8156]
[1747407730879,61.38,172.04,172.03,5.811]
[1747407731477,5.8099,172.07,172.04,5.8106]
[1747407731672,61.38,172.06,172.04,5.8106]
[1747407731872,61.38,172.06,171.99,61.38]
[1747407732279,61.38,172.09,171.99,61.38]
[1747407732583,61.38,172.08,171.99,61.38]
[1747407733177,61.36,172.09,171.99,122.74]
[1747407733375,61.36,172.09,171.99,139.71364365]
[1747407733682,5.8093,172.08,171.99,139.71364365]
[1747407733978,61.36,172.09,171.99,139.71364365]
[1747407734174,61.36,172.09,172.05,5.8101]
[1747407734383,61.36,172.09,171.99,61.38]
[1747407734981,61.36,172.09,171.99,78.35364365]
[1747407735182,67.169,172.09,172.06,5.8097]
[1747407735369,61.36,172.09,172.03,61.38]
[1747407735573,28.58534365,172.19,172.03,61.38]
[1747407735574,61.38,172.17,172.03,61.38]
[1747407735775,61.38,172.19,172.04,67.265]
[1747407735970,5.8072,172.15,172.11,5.808]
[1747407736173,61.36,172.18,172.08,61.38]
[1747407736374,61.36,172.18,172.09,61.38]
[1747407736979,5.8065,172.17,172.12,5.8077]
[1747407737177,61.38,172.22,172.09,61.38]
[1747407737378,61.36,172.21,172.09,61.38]
[1747407737581,5.8053,172.2,172.16,5.8063]
[1747407738081,5.8053,172.2,172.17,5.8062]
[1747407738278,3.7979,172.23,172.13,61.38]
[1747407738481,61.36,172.22,172.14,61.38]
[1747407738877,61.36,172.22,172.12,3.8762]
[1747407739076,61.36,172.22,172.16,5.8063]
[1747407739479,61.38,172.24,172.12,3.8762]
[1747407739678,61.34,172.23,172.12,3.8762]
[1747407739879,61.34,172.23,172.13,63.2551]
[1747407740281,61.34,172.23,172.14,16.97364365]
[1747407740478,61.34,172.23,172.15,61.36]
[1747407740674,5.8036,172.25,172.15,61.36]
[1747407740880,61.34,172.24,172.15,61.36]
[1747407741079,5.8043,172.23,172.15,61.36]
[1747407741583,61.34,172.24,172.15,61.36]
[1747407741779,61.32,172.23,172.15,61.36]
[1747407742486,61.32,172.25,172.15,61.36]
[1747407742687,61.32,172.26,172.15,61.36]
[1747407743077,61.32,172.26,172.24,5.8038]
[1747407743287,61.32,172.28,172.2,61.34]
[1747407743488,61.32,172.28,172.21,61.34]
[1747407743792,61.34,172.27,172.2,5.8052]
[1747407744289,61.34,172.27,172.17,61.34]
[1747407744792,61.34,172.27,172.14,61.34]
[1747407745088,16.97364365,172.26,172.12,3.8762]
[1747407745385,1.8459,172.25,172.15,5.8068]
[1747407745590,5.8059,172.18,172.12,3.8762]
[1747407745787,61.3,172.17,172.12,3.8762]
[1747407745981,61.3,172.17,172.12,1.8954]
[1747407746181,61.3,172.17,172.11,61.34]
[1747407746380,61.3,172.17,172.12,5.8076]
[1747407746581,5.8069,172.16,172.08,61.34]
[1747407747087,61.3,172.17,172.08,61.34]
[1747407747788,61.3,172.17,172.09,61.34]
[1747407747984,1.9577,172.24,172.09,61.34]
[1747407748288,122.86,172.23,172.18,5.8058]
[1747407748490,122.86,172.23,172.13,61.34]
[1747407749189,5.8062,172.18,172.15,5.8068]
[1747407749389,61.5,172.17,172.1,61.34]
[1747407749685,61.5,172.17,172.15,5.8067]
[1747407750185,61.5,172.17,172.16,5.8066]
[1747407750590,61.5,172.17,172.1,61.34]
[1747407752090,61.5,172.17,172.16,5.8066]
[1747407752587,61.5,172.17,172.1,61.34]
[1747407752984,67.3065,172.17,172.1,61.34]
[1747407753392,5.8068,172.16,172.13,5.8074]
[1747407753584,61.5,172.17,172.1,61.34]
[1747407753988,5.8072,172.15,172.11,5.808]
[1747407754289,5.8072,172.15,172.1,61.34]
[1747407754599,61.5,172.17,172.1,5.8085]
[1747407754992,61.5,172.17,172.1,5.8086]
[1747407755595,5.8075,172.14,172.11,5.8082]
[1747407755797,61.72,172.13,172.11,5.8082]
[1747407756391,61.72,172.13,172.12,5.8079]
[1747407757495,61.6,172.17,172.16,5.8063]
[1747407758089,61.66,172.19,172.18,5.8059]
[1747407758390,123.24,172.19,172.1,61.66]
[1747407758792,63.6177,172.24,172.1,78.63364365]
[1747407758994,61.56,172.23,172.11,11.6165]
[1747407759188,61.56,172.23,172.12,61.58]
[1747407759592,61.56,172.23,172.2,5.805]
[1747407759794,61.56,172.23,172.15,61.64]
[1747407760399,5.8048,172.22,172.15,61.64]
[1747407760698,61.56,172.23,172.15,61.64]
[1747407761501,5.805,172.21,172.15,61.64]
[1747407761698,61.46,172.2,172.08,16.97364365]
[1747407761901,61.46,172.2,172.09,61.64]
[1747407762602,5.8043,172.23,172.2,5.805]
[1747407762802,61.66,172.24,172.15,61.64]
[1747407763004,61.46,172.23,172.16,3.7952]
[1747407763204,61.66,172.24,172.23,5.8042]
[1747407763407,61.46,172.25,172.19,61.64]
[1747407763700,67.2629,172.27,172.19,61.64]
[1747407763912,67.2429,172.27,172.19,61.64]
[1747407765111,67.2429,172.27,172.24,5.8038]
[1747407765303,61.44,172.27,172.19,61.64]
[1747407766313,61.44,172.27,172.24,5.8039]
[1747407766614,61.44,172.27,172.19,61.64]
[1747407767915,61.44,172.27,172.19,5.8054]
[1747407768109,61.44,172.27,172.16,63.5625]
[1747407768315,61.44,172.27,172.13,1.8921]
[1747407768617,5.8057,172.19,172.12,563.4]
[1747407768817,61.3,172.18,172.12,61.64]
[1747407769018,61.3,172.18,172.16,5.8064]
[1747407769516,67.1059,172.18,172.16,5.8064]
[1747407769711,61.3,172.18,172.12,61.64]
[1747407771214,61.64,172.17,172.08,135.10846687]
[1747407771715,5.8077,172.13,172.1,5.8084]
[1747407771908,67.1077,172.13,172.1,5.8084]
[1747407772105,61.3,172.13,172.08,61.64]
[1747407772616,5.8079,172.12,172.09,5.8087]
[1747407772814,61.3,172.13,172.09,5.8087]
[1747407773114,61.3,172.13,172.08,61.64]
[1747407774408,67.4465,172.17,172.14,5.8071]
[1747407774711,61.3,172.16,172.14,5.8071]
[1747407775114,61.3,172.16,172.15,5.8069]
[1747407775914,61.3,172.16,172.08,61.64]
[1747407776225,67.1068,172.16,172.08,61.64]
[1747407776406,67.1068,172.16,172.13,5.8075]
[1747407776817,61.3,172.16,172.14,5.8071]
[1747407777120,61.3,172.16,172.08,61.64]
[1747407777325,61.3,172.15,172.08,61.64]
[1747407777820,61.64,172.17,172.08,61.64]
[1747407778122,61.64,172.22,172.08,90.23174365]
[1747407778321,61.3,172.2,172.08,78.61364365]
[1747407778621,61.3,172.2,172.09,11.6178]
[1747407778820,61.3,172.2,172.1,61.3]
[1747407779010,61.3,172.2,172.19,5.8056]
[1747407779211,61.3,172.2,172.14,61.64]
[1747407779521,61.3,172.2,172.18,5.8057]
[1747407779710,61.3,172.2,172.14,61.64]
[1747407779911,61.3,172.2,172.11,61.3]
[1747407780219,5.8057,172.19,172.16,5.8064]
[1747407780420,61.3,172.2,172.11,61.3]
[1747407780722,67.1053,172.2,172.17,5.8061]
[1747407781023,61.3,172.2,172.11,61.3]
[1747407781422,5.8056,172.19,172.16,5.8064]
[1747407782129,61.64,172.22,172.11,61.3]
[1747407782423,61.3,172.22,172.12,18.90914365]
[1747407782611,61.3,172.22,172.2,5.8052]
[1747407783125,61.3,172.22,172.21,5.8049]
[1747407784123,61.3,172.24,172.23,5.804]
[1747407784323,61.3,172.24,172.15,122.6]
[1747407785220,61.3,172.24,172.21,5.8046]
[1747407785429,61.3,172.24,172.15,122.6]
[1747407786330,5.8027,172.28,172.15,122.6]
[1747407786520,61.3,172.27,172.15,122.6]
[1747407787033,61.3,172.27,172.16,16.97364365]
[1747407787223,61.3,172.29,172.16,16.97364365]
[1747407787425,61.3,172.28,172.16,16.97364365]
[1747407787827,61.3,172.28,172.17,11.6125]
[1747407788424,5.8033,172.26,172.16,16.97364365]
[1747407788825,61.3,172.28,172.16,16.97364365]
[1747407789027,5.8031,172.27,172.16,16.97364365]
[1747407789427,61.3,172.28,172.16,16.97364365]
[1747407789730,67.1028,172.28,172.16,16.97364365]
[1747407789930,61.3,172.28,172.16,16.97364365]
[1747407790334,61.3,172.28,172.16,61.28]
[1747407790634,5.8032,172.27,172.15,61.3]
[1747407790832,61.3,172.28,172.15,61.3]
[1747407791132,5.8036,172.25,172.15,61.3]
[1747407791334,61.28,172.24,172.15,61.3]
[1747407791832,61.28,172.24,172.23,5.8042]
[1747407792232,61.28,172.24,172.14,18.93264365]
[1747407792233,5.8048,172.22,172.14,1.959]
[1747407792529,61.28,172.24,172.15,61.28]
[1747407792734,5.8043,172.23,172.15,61.28]
[1747407792928,61.28,172.24,172.15,61.28]
[1747407793435,78.25364365,172.24,172.13,1.952]
[1747407793637,1.8804,172.23,172.13,5.8073]
[1747407793831,1.8804,172.23,172.1,61.28]
[1747407794031,1.8804,172.23,172.14,5.8071]
[1747407794233,5.8073,172.14,172.08,3.7738]
[1747407794539,61.28,172.14,172.08,3.7738]
[1747407795133,61.28,172.14,172.08,1.9259]
[1747407795739,61.28,172.14,172.11,5.808]
[1747407796136,61.28,172.14,172.08,1.9259]
[1747407796335,61.28,172.14,172.13,5.8076]
[1747407796535,61.28,172.14,172.08,1.9259]
[1747407797137,5.8077,172.13,172.08,1.9259]
[1747407797336,61.28,172.14,172.11,5.8082]
[1747407797636,67.0873,172.14,172.08,1.9259]
[1747407798039,67.0873,172.14,172.11,5.8082]
[1747407799235,61.28,172.14,172.11,5.8082]
[1747407799435,61.28,172.14,172.1,5.8085]
[1747407799633,61.28,172.14,172.06,61.28]
[1747407799835,122.58,172.14,172.06,62.44238521]
[1747407800138,122.58,172.14,172.09,5.8087]
[1747407800339,5.808,172.12,172.09,5.8087]
[1747407800738,122.58,172.14,172.06,62.44238521]
[1747407801342,5.8082,172.12,172.06,62.44238521]
[1747407801742,122.58,172.14,172.08,5.8091]
[1747407802041,5.8084,172.11,172.08,5.8091]